bitfinex/quotes_SOLUSD_20250924
["timestamp","ask_amount","ask_price","bid_price","bid_amount"]
[1758697183757,17.27472518,211.42,211.37,38.17]
[1758697184745,16.55472518,211.42,211.37,37.48]
[1758697185160,0.72,211.41,211.37,37.48]
[1758697185670,4.73036896,211.4,211.37,37.48]
[1758697190053,11.8232948,211.45,211.39,1.49318155]
[1758697190241,4.72880313,211.47,211.4,51.76559401]
[1758697190447,0.68,211.46,211.41,1.49318155]
[1758697190669,0.68,211.45,211.41,1.49318155]
[1758697191569,35.60802068,211.5,211.4,37.46]
[1758697191570,5.40947408,211.44,211.4,37.46]
[1758697191759,0.68,211.43,211.4,37.46]
[1758697192071,0.68,211.42,211.4,37.46]
[1758697192867,0.68,211.41,211.4,37.46]
[1758697193648,5.41014521,211.41,211.4,37.46]
[1758697193861,4.73014521,211.41,211.4,37.46]
[1758697194059,5.41014521,211.41,211.4,37.46]
[1758697194262,17.23550824,211.41,211.35,39.59559401]
[1758697194470,0.68,211.4,211.36,37.46]
[1758697194665,0.68,211.39,211.36,37.46]
[1758697195974,4.73081653,211.38,211.36,37.46]
[1758697197652,4.73014521,211.41,211.36,37.46]
[1758697197868,11.8251809,211.42,211.37,14.25559401]
[1758697198062,11.8251809,211.42,211.38,0.66]
[1758697198266,11.8251809,211.42,211.39,37.46]
[1758697198861,12.5051809,211.42,211.39,37.46]
[1758697199269,17.23510238,211.42,211.39,37.46]
[1758697200469,4.72992148,211.42,211.39,38.12]
[1758697200664,11.82353287,211.45,211.4,14.25559401]
[1758697200665,4.72962993,211.44,211.4,14.25559401]
[1758697200867,0.68,211.43,211.39,37.46]
[1758697201253,4.73014521,211.41,211.39,37.46]
[1758697201454,5.41014521,211.41,211.39,37.46]
[1758697201774,4.73014521,211.41,211.39,37.46]
[1758697202266,4.73014521,211.41,211.31,0.66]
[1758697202267,0.68,211.4,211.31,0.66]
[1758697202465,0.68,211.4,211.32,37.44]
[1758697202767,0.68,211.39,211.32,37.44]
[1758697202978,0.68,211.38,211.32,37.44]
[1758697203300,0.68,211.37,211.32,37.44]
[1758697203591,0.68,211.36,211.32,37.44]
[1758697203959,0.68,211.38,211.32,37.44]
[1758697205075,0.68,211.37,211.24,26.0]
[1758697205374,0.68,211.36,211.28,26.0]
[1758697205564,40.89764844,211.35,211.29,37.44]
[1758697205886,0.68,211.34,211.3,37.44]
[1758697206059,0.68,211.33,211.29,37.44]
[1758697206260,0.68,211.32,211.29,37.44]
[1758697207463,16.56177541,211.33,211.29,37.44]
[1758697208394,17.24177541,211.33,211.29,37.44]
[1758697209469,16.56177541,211.33,211.3,0.66]
[1758697210000,16.56177541,211.33,211.29,37.44]
[1758697210283,16.56177541,211.33,211.29,38.1]
[1758697210689,4.73148805,211.35,211.29,37.44]
[1758697210896,0.68,211.34,211.29,37.44]
[1758697211067,4.73148805,211.35,211.29,37.44]
[1758697211395,0.68,211.33,211.24,0.66]
[1758697211683,0.14216157,211.31,211.21,23.48]
[1758697211893,0.14216157,211.29,211.22,23.48]
[1758697212074,0.68,211.28,211.23,37.44]
[1758697212482,0.68,211.27,211.23,37.44]
[1758697212683,16.56569481,211.28,211.23,37.44]
[1758697212874,0.68,211.27,211.23,37.44]
[1758697213193,0.68,211.26,211.23,37.44]
[1758697213583,16.56569481,211.28,211.23,37.44]
[1758697213896,0.68,211.26,211.23,37.44]
[1758697214096,4.73372781,211.25,211.23,37.44]
[1758697214670,4.73372781,211.25,211.24,0.66]
[1758697214872,4.73343203,211.27,211.24,0.66]
[1758697215468,4.73260766,211.3,211.26,26.0]
[1758697215772,16.56412682,211.3,211.27,37.44]
[1758697215974,11.83151916,211.3,211.27,37.44]
[1758697216273,12.54151916,211.3,211.27,37.44]
[1758697216774,0.71,211.29,211.27,37.44]
[1758697216973,0.71,211.28,211.24,37.44]
[1758697217589,0.71,211.27,211.24,37.44]
[1758697217772,0.71,211.26,211.24,37.44]
[1758697218278,4.73372781,211.25,211.24,37.44]
[1758697220280,4.73350373,211.26,211.24,37.44]
[1758697220505,5.41350373,211.26,211.24,37.44]
[1758697221090,4.73350373,211.26,211.24,37.44]
[1758697221515,4.73350373,211.26,211.24,38.13]
[1758697221679,4.73350373,211.26,211.25,0.69]
[1758697221883,4.73283165,211.29,211.25,0.69]
[1758697222283,4.73283165,211.29,211.26,0.69]
[1758697222504,11.83188483,211.3,211.26,0.69]
[1758697224680,0.14216157,211.29,211.12,20.0]
[1758697224884,0.68,211.28,211.14,14.21]
[1758697225100,12.51188483,211.3,211.22,26.0]
[1758697225293,12.51188483,211.3,211.23,51.72559401]
[1758697225987,17.24449249,211.3,211.23,51.72559401]
[1758697226816,16.56449249,211.3,211.24,0.69]
[1758697227001,16.56449249,211.3,211.26,26.0]
[1758697227407,0.68,211.29,211.27,37.44]
[1758697228013,4.73305566,211.28,211.27,37.44]
[1758697229478,4.7328223,211.3,211.27,38.13]
[1758697229678,16.56434146,211.3,211.27,37.44]
[1758697230407,4.7328223,211.3,211.27,38.13]
[1758697230600,4.73237779,211.32,211.27,64.13]
[1758697231117,0.68,211.31,211.27,63.44]
[1758697231600,16.56277718,211.32,211.27,63.44]
[1758697232087,17.24277718,211.32,211.27,63.44]
[1758697234305,0.68,211.31,211.27,37.44]
[1758697234604,3.01419429,211.3,211.27,37.44]
[1758697235512,0.68,211.3,211.27,37.44]
[1758697236700,4.73283165,211.29,211.27,38.13]
[1758697237611,4.73283165,211.29,211.27,37.44]
[1758697237810,4.73283165,211.29,211.27,38.13]
[1758697238598,16.56334295,211.31,211.27,37.44]
[1758697238914,2.33419429,211.3,211.27,37.44]
[1758697239503,3.01419429,211.3,211.27,37.44]
[1758697239702,2.33419429,211.3,211.27,37.44]
[1758697239905,2.33419429,211.28,211.27,37.44]
[1758697240098,3.01419429,211.28,211.27,37.44]
[1758697240919,7.74724995,211.28,211.27,37.44]
[1758697241218,0.14216157,211.27,211.18,37.42]
[1758697241419,2.33419429,211.22,211.18,37.42]
[1758697241720,2.33419429,211.22,211.18,38.11]
[1758697241918,2.33419429,211.22,211.18,37.42]
[1758697242122,2.33419429,211.2,211.18,37.42]
[1758697242717,3.01419429,211.2,211.18,37.42]
[1758697243021,4.73507268,211.19,211.18,37.42]
[1758697243521,5.41507268,211.19,211.18,37.42]
[1758697243814,4.73507268,211.19,211.18,37.42]
[1758697244824,4.20031295,211.22,211.18,38.11]
[1758697244825,4.73440015,211.22,211.18,38.11]
[1758697245005,2.33419429,211.21,211.19,0.69]
[1758697245319,2.33419429,211.21,211.18,37.42]
[1758697245819,2.33419429,211.21,211.18,38.11]
[1758697246524,2.33419429,211.21,211.18,37.42]
[1758697247199,4.73484848,211.2,211.18,37.42]
[1758697249808,4.73484848,211.2,211.19,0.69]
[1758697250122,2.33419429,211.22,211.19,0.69]
[1758697250335,2.33419429,211.22,211.2,0.69]
[1758697250920,7.06872524,211.22,211.2,0.69]
[1758697251705,2.33419429,211.22,211.2,0.69]
[1758697252619,2.33419429,211.22,211.19,13.59559401]
[1758697252921,7.06864449,211.22,211.2,0.69]
[1758697253224,7.06864449,211.22,211.18,63.42]
[1758697253604,7.06864449,211.22,211.19,0.69]
[1758697254813,7.06864449,211.22,211.18,63.42]
[1758697255023,7.06864449,211.22,211.18,64.11]
[1758697255331,7.06864449,211.22,211.19,0.69]
[1758697255830,4.73416001,211.24,211.19,14.28559401]
[1758697256000,7.06747397,211.27,211.21,39.59559401]
[1758697256200,7.06747397,211.27,211.23,13.59559401]
[1758697256549,4.73327968,211.27,211.23,14.28559401]
[1758697257233,2.33419429,211.29,211.26,26.0]
[1758697257415,4.73305566,211.28,211.27,37.4]
[1758697260228,2.33419429,211.28,211.27,37.4]
[1758697260431,4.73283165,211.29,211.27,37.4]
[1758697260925,2.33419429,211.28,211.27,37.4]
[1758697261605,2.99419429,211.28,211.27,37.4]
[1758697262230,2.33419429,211.28,211.27,37.4]
[1758697262412,7.72724995,211.28,211.27,37.4]
[1758697262724,19.5598891,211.28,211.25,37.4]
[1758697262924,2.33419429,211.26,211.25,37.4]
[1758697263231,2.99419429,211.26,211.25,37.4]
[1758697264230,7.72769802,211.26,211.25,37.4]
[1758697265304,7.06769802,211.26,211.25,37.4]
[1758697265723,7.72769802,211.26,211.25,37.4]
[1758697266316,5.39350373,211.26,211.25,37.4]
[1758697266718,6.88818138,211.26,211.25,37.4]
[1758697267403,5.39350373,211.26,211.25,37.4]
[1758697267602,6.88818138,211.26,211.25,37.4]
[1758697269518,42.38945941,211.26,211.2,63.4]
[1758697269718,1.49467765,211.21,211.2,63.4]
[1758697270612,6.22930195,211.21,211.2,37.4]
[1758697271234,6.22930195,211.21,211.12,13.59559401]
[1758697271235,18.72586271,211.21,211.12,13.59559401]
[1758697271444,1.49467765,211.15,211.13,37.38]
[1758697272531,4.73619399,211.14,211.13,37.38]
[1758697272920,17.23667897,211.14,211.08,37.38]
[1758697273114,1.49467765,211.11,211.08,37.38]
[1758697273928,2.19467765,211.11,211.07,0.2]
[1758697274323,1.49467765,211.09,211.07,0.2]
[1758697274626,4.73754026,211.08,211.07,0.2]
[1758697274817,5.43754026,211.08,211.07,0.2]
[1758697275015,6.23221791,211.08,211.07,0.2]
[1758697275533,6.93221791,211.08,211.07,0.2]
[1758697276045,1.49467765,211.1,211.07,0.87]
[1758697276559,4.73664266,211.12,211.07,0.2]
[1758697276834,4.73664266,211.12,211.08,0.67]
[1758697276835,1.49467765,211.12,211.08,0.67]
[1758697277153,1.49467765,211.14,211.09,0.67]
[1758697277717,2.19467765,211.14,211.09,0.67]
[1758697278538,2.19467765,211.14,211.08,13.59559401]
[1758697278848,1.49467765,211.12,211.08,13.59559401]
[1758697279222,1.49467765,211.1,211.07,37.58]
[1758697279423,2.19467765,211.1,211.07,37.58]
[1758697279622,1.49467765,211.1,211.07,37.58]
[1758697279830,16.57746412,211.13,211.07,38.25]
[1758697279831,1.49467765,211.12,211.07,38.25]
[1758697280033,2.19467765,211.12,211.07,37.58]
[1758697280740,4.73686703,211.11,211.08,0.67]
[1758697280945,4.73686703,211.11,211.07,37.58]
[1758697281130,5.39686703,211.11,211.07,37.58]
[1758697284928,1.49467765,211.12,211.08,0.67]
[1758697285128,1.49467765,211.12,211.07,37.58]
[1758697285348,1.49467765,211.12,211.07,38.25]
[1758697286450,1.49467765,211.14,211.08,13.59559401]
[1758697286667,1.49467765,211.14,211.09,0.67]
[1758697286951,4.73596968,211.15,211.1,38.05]
[1758697287547,4.73596968,211.15,211.11,0.67]
[1758697288130,4.73596968,211.15,211.12,0.67]
[1758697288454,4.73596968,211.15,211.1,38.05]
[1758697288951,1.49467765,211.17,211.11,14.26559401]
[1758697289249,1.49467765,211.17,211.14,26.0]
[1758697289448,1.49467765,211.17,211.14,63.38]
[1758697289751,6.22997455,211.18,211.14,63.38]
[1758697289932,6.22997455,211.18,211.15,0.67]
[1758697290134,4.73505308,211.2,211.15,0.67]
[1758697290441,1.49467765,211.19,211.15,13.59559401]
[1758697290636,2.15467765,211.19,211.14,63.38]
[1758697290832,4.73552114,211.17,211.14,26.0]
[1758697291032,5.39552114,211.17,211.15,37.38]
[1758697291256,4.73552114,211.17,211.15,37.38]
[1758697291844,1.49467765,211.2,211.15,38.05]
[1758697292156,2.15467765,211.2,211.15,38.05]
[1758697292868,4.73507268,211.19,211.15,38.05]
[1758697293352,1.49467765,211.22,211.16,0.67]
[1758697293557,4.7339519,211.24,211.17,13.59559401]
[1758697293746,1.49467765,211.23,211.18,37.38]
[1758697293949,2.15467765,211.23,211.18,38.05]
[1758697294553,2.15467765,211.23,211.18,37.38]
[1758697294737,0.66,211.22,211.18,37.38]
[1758697295147,4.7346243,211.21,211.18,37.38]
[1758697295945,0.66,211.2,211.18,37.38]
[1758697296151,2.15467765,211.19,211.18,37.38]
[1758697296569,2.15467765,211.19,211.15,37.38]
[1758697297032,0.66,211.18,211.15,37.38]
[1758697297230,4.73552114,211.17,211.15,37.38]
[1758697299241,16.57353915,211.18,211.15,37.38]
[1758697299442,17.23353915,211.18,211.11,76.95559401]
[1758697299648,17.23353915,211.18,211.11,77.62559401]
[1758697300259,17.23353915,211.18,211.12,0.67]
[1758697300656,5.3952969,211.18,211.12,0.67]
[1758697300848,4.7352969,211.18,211.13,13.59559401]
[1758697301050,4.7352969,211.18,211.14,38.03]
[1758697301242,4.73505663,211.2,211.14,37.36]
[1758697301450,4.73505663,211.2,211.15,0.67]
[1758697302164,4.73505663,211.2,211.16,0.67]
[1758697302645,4.73505663,211.2,211.15,13.59559401]
[1758697302852,5.39505663,211.2,211.15,14.26559401]
[1758697303452,0.66,211.19,211.15,13.59559401]
[1758697304358,2.15467765,211.19,211.15,13.59559401]
[1758697304658,4.7352969,211.18,211.15,13.59559401]
[1758697304860,5.3952969,211.18,211.15,13.59559401]
[1758697305071,4.7352969,211.18,211.15,13.59559401]
[1758697305773,4.7352969,211.18,211.15,14.26559401]
[1758697307150,16.56961605,211.23,211.15,13.59559401]
[1758697307446,1.49467765,211.2,211.15,13.59559401]
[1758697307663,2.15467765,211.2,211.15,13.59559401]
[1758697307864,2.15467765,211.2,211.15,14.26559401]
[1758697308259,4.73507268,211.19,211.15,14.26559401]
[1758697308656,1.49467765,211.2,211.16,0.67]
[1758697308859,6.22953415,211.2,211.17,0.67]
[1758697309075,4.7348565,211.2,211.17,0.67]
[1758697309354,4.7348565,211.2,211.17,38.01]
[1758697309546,12.49544004,211.23,211.18,13.59559401]
[1758697309749,12.49544004,211.23,211.18,14.26559401]
[1758697309948,4.73440015,211.22,211.18,13.59559401]
[1758697310146,6.8890778,211.22,211.18,13.59559401]
[1758697310343,6.2290778,211.22,211.18,26.0]
[1758697310568,0.68,211.21,211.18,63.34]
[1758697311168,4.73484848,211.2,211.18,63.34]
[1758697312148,4.73484848,211.2,211.19,26.0]
[1758697313576,5.41484848,211.2,211.18,37.34]
[1758697314172,0.68,211.19,211.18,37.34]
[1758697315450,5.41507268,211.19,211.18,37.34]
[1758697316457,5.41507268,211.19,211.16,37.34]
[1758697316655,4.73507268,211.19,211.16,37.34]
[1758697317690,1.49467765,211.17,211.09,13.59559401]
[1758697317863,1.49467765,211.15,211.1,37.34]
[1758697318177,0.68,211.14,211.13,26.0]
[1758697318379,0.68,211.14,211.1,37.34]
[1758697318575,4.73608164,211.15,211.13,26.0]
[1758697318751,1.49467765,211.16,211.13,26.0]
[1758697319557,1.49467765,211.16,211.13,37.34]
[1758697319782,0.68,211.18,211.13,37.34]
[1758697319957,19.75797712,211.21,211.13,37.34]
[1758697319958,1.49467765,211.16,211.13,37.34]
[1758697320960,4.73596968,211.15,211.13,37.34]
[1758697323089,3.18679206,211.2,211.14,0.65]
[1758697323090,0.68,211.2,211.14,0.65]
[1758697323398,1.49467765,211.17,211.13,37.34]
[1758697323577,2.17467765,211.17,211.13,37.34]
[1758697324106,0.85358592,211.17,211.13,37.34]
[1758697324388,0.85358592,211.17,211.14,0.65]
[1758697324692,0.85358592,211.17,211.13,37.34]
[1758697325969,4.7357454,211.16,211.13,37.34]
[1758697326386,5.4157454,211.16,211.13,37.34]
[1758697326992,17.25510891,211.16,211.13,37.34]
[1758697328276,16.71334663,211.21,211.13,37.34]
[1758697328482,2.33707646,211.18,211.13,37.99]
[1758697328684,2.33707646,211.16,211.13,37.34]
[1758697329673,0.68,211.16,211.13,37.34]
[1758697330195,0.68,211.15,211.13,37.34]
[1758697330502,4.73619399,211.14,211.13,37.34]
[1758697330667,7.75327045,211.14,211.11,37.32]
[1758697330867,0.68,211.13,211.1,37.32]
[1758697331079,7.07327045,211.14,211.1,37.32]
[1758697331080,0.68,211.12,211.1,37.32]
[1758697331882,4.73686703,211.11,211.1,37.32]
[1758697332670,5.41686703,211.11,211.1,37.32]
[1758697332882,5.41686703,211.11,211.07,0.2]
[1758697332883,17.25903462,211.11,211.07,0.2]
[1758697333194,2.33707646,211.09,211.07,0.2]
[1758697333994,4.73746507,211.09,211.07,0.2]
[1758697334866,4.73709142,211.1,211.07,0.2]
[1758697335280,0.71,211.09,211.07,0.2]
[1758697336289,4.73754026,211.08,211.07,0.2]
[1758697336881,5.44754026,211.08,211.07,0.2]
[1758697337972,7.78461672,211.08,211.07,0.2]
[1758697341374,11.96518423,211.08,211.07,0.2]
[1758697342185,7.07461672,211.08,211.07,0.2]
[1758697344692,7.76461672,211.08,211.07,0.2]
[1758697346017,7.07461672,211.08,211.07,0.2]
[1758697346418,7.76461672,211.08,211.07,0.2]
[1758697347799,7.07461672,211.08,211.07,0.2]
[1758697348000,7.76461672,211.08,211.07,0.2]
[1758697348234,7.07461672,211.08,211.07,0.2]
[1758697348932,7.76461672,211.08,211.07,0.2]
[1758697349812,5.42754026,211.08,211.07,0.2]
[1758697350002,7.76461672,211.08,211.07,0.2]
[1758697350647,7.07461672,211.08,211.07,0.2]
[1758697351352,7.76461672,211.08,211.07,0.2]
[1758697351559,7.07461672,211.08,211.07,0.2]
[1758697352242,7.76461672,211.08,211.07,0.2]
[1758697354223,19.60846739,211.08,211.04,0.2]
[1758697354446,2.33707646,211.05,211.04,0.2]
[1758697354951,3.02707646,211.05,211.04,0.2]
[1758697355150,7.76529015,211.05,211.04,0.2]
[1758697357250,7.07529015,211.05,211.04,0.2]
[1758697357544,7.76529015,211.05,211.04,0.2]
[1758697358838,4.73821369,211.05,211.04,0.2]
[1758697359041,7.76529015,211.05,211.04,0.2]
[1758697359428,7.07529015,211.05,211.04,0.2]
[1758697359843,7.76529015,211.05,211.04,0.2]
[1758697361954,7.07529015,211.05,211.04,0.2]
[1758697362155,4.73821369,211.05,211.04,0.2]
[1758697362361,7.07529015,211.05,211.04,0.2]
[1758697363038,7.76529015,211.05,211.04,0.2]
[1758697366935,7.07529015,211.05,211.04,0.2]
[1758697368855,1.90028267,211.08,211.04,0.89]
[1758697369037,1.90028267,211.08,211.07,26.0]
[1758697369248,1.90028267,211.08,211.07,26.69]
[1758697369455,1.90028267,211.08,211.07,40.28559401]
[1758697369648,2.33707646,211.11,211.07,40.28559401]
[1758697369847,2.33707646,211.14,211.09,13.59559401]
[1758697370048,2.33707646,211.14,211.1,0.69]
[1758697370252,2.33707646,211.15,211.1,0.69]
[1758697370449,7.07305541,211.15,211.1,0.69]
[1758697371056,2.33707646,211.16,211.13,26.0]
[1758697371254,2.33707646,211.16,211.14,0.67]
[1758697371447,2.33707646,211.16,211.15,0.67]
[1758697371653,2.33707646,211.18,211.15,0.67]
[1758697371954,2.33707646,211.18,211.16,0.67]
[1758697375572,2.33707646,211.18,211.14,13.59559401]
[1758697375771,5.42478337,211.21,211.15,0.67]
[1758697375942,4.73478337,211.21,211.16,13.59559401]
[1758697376147,37.38216157,211.27,211.16,13.59559401]
[1758697376148,4.73350373,211.26,211.19,26.0]
[1758697376347,18.90433953,211.26,211.19,26.67]
[1758697376547,19.59433953,211.26,211.19,26.67]
[1758697376767,19.59433953,211.26,211.19,63.91]
[1758697378551,19.59433953,211.26,211.2,14.26559401]
[1758697378746,16.56726307,211.26,211.2,13.59559401]
[1758697378973,4.73350373,211.26,211.21,0.67]
[1758697379169,4.73350373,211.26,211.22,0.67]
[1758697379362,5.42350373,211.26,211.2,14.26559401]
[1758697380075,5.42350373,211.26,211.2,0.67]
[1758697380585,4.73214311,211.33,211.24,28.33707646]
[1758697380747,4.73165384,211.35,211.27,2.33707646]
[1758697380953,0.69,211.34,211.27,40.22707646]
[1758697381258,4.73165384,211.35,211.29,13.59559401]
[1758697381478,11.92674547,211.39,211.3,0.67]
[1758697381479,7.75822353,211.37,211.3,0.67]
[1758697381982,5.42114707,211.37,211.31,13.59559401]
[1758697382169,4.73114707,211.37,211.32,0.67]
[1758697382352,4.73114707,211.37,211.32,37.89]
[1758697382559,5.52073415,211.39,211.33,0.67]
[1758697383378,5.52073415,211.39,211.35,26.0]
[1758697384576,3.02707646,211.38,211.33,26.0]
[1758697384782,0.69,211.37,211.33,63.22]
[1758697385076,0.69,211.36,211.33,63.22]
[1758697386089,0.69,211.35,211.32,26.0]
[1758697388480,4.73171193,211.34,211.32,26.0]
[1758697389480,0.69,211.33,211.32,26.0]
[1758697389879,0.69,211.33,211.29,39.59559401]
[1758697390184,0.69,211.32,211.3,37.2]
[1758697390481,4.7323837,211.31,211.3,37.2]
[1758697390983,4.7323837,211.31,211.24,4.73391502]
[1758697390984,6.91531235,211.31,211.18,13.59559401]
[1758697391284,1.49292865,211.28,211.22,26.0]
[1758697391594,0.69,211.27,211.23,37.18]
[1758697391758,1.49292865,211.26,211.25,26.0]
[1758697391956,2.18292865,211.26,211.25,26.0]
[1758697392179,16.56334295,211.31,211.25,26.0]
[1758697392383,1.49292865,211.27,211.25,26.0]
[1758697392583,4.73350373,211.26,211.25,26.0]
[1758697392960,5.42350373,211.26,211.25,26.0]
[1758697393360,5.42350373,211.26,211.23,37.18]
[1758697394054,1.49292865,211.25,211.23,37.18]
[1758697394480,0.69,211.32,211.24,0.69]
[1758697394665,1.49292865,211.29,211.24,0.69]
[1758697394870,1.49292865,211.29,211.25,14.28559401]
[1758697395077,1.49292865,211.29,211.26,26.0]
[1758697395279,1.49292865,211.29,211.26,26.69]
[1758697395460,1.49292865,211.29,211.26,63.87]
[1758697396360,1.49292865,211.31,211.27,0.69]
[1758697396555,0.69,211.3,211.26,63.18]
[1758697396766,1.49292865,211.29,211.26,63.18]
[1758697396977,1.49292865,211.29,211.26,63.87]
[1758697397171,6.22524388,211.32,211.26,63.18]
[1758697397484,6.22524388,211.32,211.27,0.69]
[1758697397977,6.91524388,211.32,211.27,0.69]
[1758697398387,6.22524388,211.32,211.27,0.69]
[1758697398691,6.91524388,211.32,211.27,0.69]
[1758697398990,1.49292865,211.34,211.3,26.0]
[1758697399210,1.49292865,211.34,211.3,63.18]
[1758697399562,2.18292865,211.34,211.3,63.18]
[1758697399764,1.49292865,211.34,211.3,63.18]
[1758697399964,0.69,211.33,211.3,63.18]
[1758697400594,1.49292865,211.34,211.3,63.18]
[1758697400773,2.19292865,211.34,211.3,63.18]
[1758697400981,5.43193583,211.33,211.3,63.18]
[1758697401160,4.73193583,211.33,211.3,63.18]
[1758697401669,2.19292865,211.37,211.31,0.69]
[1758697402869,4.73126419,211.36,211.31,0.69]
[1758697403285,5.43126419,211.36,211.31,0.69]
[1758697403497,0.7,211.35,211.3,63.18]
[1758697403674,1.49292865,211.31,211.22,14.28559401]
[1758697403882,0.7,211.3,211.27,26.0]
[1758697404088,0.7,211.3,211.28,37.16]
[1758697404772,4.73283165,211.29,211.28,37.16]
[1758697404973,5.43283165,211.29,211.28,37.16]
[1758697405172,4.73283165,211.29,211.28,37.16]
[1758697406773,4.73260766,211.3,211.28,37.16]
[1758697407672,4.73226904,211.32,211.28,37.85]
[1758697408387,0.7,211.35,211.29,0.69]
[1758697408793,5.43148817,211.35,211.29,5.42282743]
[1758697410782,4.73126419,211.36,211.29,5.42282743]
[1758697411390,5.43126419,211.36,211.29,5.42282743]
[1758697412092,4.73171193,211.34,211.31,26.0]
[1758697412296,2.19292865,211.33,211.32,37.14]
[1758697413078,2.19292865,211.33,211.3,37.14]
[1758697413278,0.7,211.32,211.3,37.14]
[1758697413479,0.7,211.31,211.3,37.14]
[1758697414078,4.73260766,211.3,211.23,13.59559401]
[1758697414281,0.7,211.29,211.24,37.14]
[1758697414501,0.7,211.28,211.24,37.14]
[1758697414697,0.7,211.28,211.24,63.14]
[1758697414902,4.73260766,211.3,211.24,63.14]
[1758697415197,4.73239105,211.31,211.26,13.59559401]
[1758697415399,4.73239105,211.31,211.27,37.83]
[1758697415696,5.43203386,211.33,211.27,37.83]
[1758697417094,4.73203386,211.33,211.27,37.83]
[1758697417408,4.73173145,211.34,211.3,26.0]
[1758697417613,5.43173145,211.34,211.3,63.14]
[1758697418081,4.73173145,211.34,211.3,63.14]
[1758697418407,4.73173145,211.34,211.3,63.83]
[1758697419207,6.92437983,211.36,211.3,63.14]
[1758697419803,1.49292865,211.34,211.3,26.0]
[1758697420099,1.49292865,211.34,211.26,18.32888379]
[1758697420100,6.2250884,211.32,211.31,37.14]
[1758697420303,6.9250884,211.32,211.25,0.69]
[1758697420505,6.9250884,211.32,211.26,37.14]
[1758697420804,6.9250884,211.32,211.26,63.83]
[1758697422098,6.2250884,211.32,211.27,0.69]
[1758697422416,6.9250884,211.32,211.27,0.69]
[1758697423406,6.9250884,211.32,211.26,63.14]
[1758697424613,6.9250884,211.32,211.26,63.83]
[1758697425314,5.43215975,211.32,211.26,63.83]
[1758697426321,5.43215975,211.32,211.26,68.56347976]
[1758697426518,4.73215975,211.32,211.27,14.28559401]
[1758697426692,4.73215975,211.32,211.28,0.69]
[1758697426892,4.73215975,211.32,211.29,37.12]
[1758697427119,5.43186967,211.34,211.29,37.12]
[1758697427425,5.43186967,211.34,211.29,37.81]
[1758697427798,0.7,211.33,211.29,37.12]
[1758697429128,4.73215975,211.32,211.29,37.12]
[1758697430005,4.73215975,211.32,211.27,14.28559401]
[1758697430006,0.7,211.31,211.27,37.12]
[1758697430309,1.49292865,211.28,211.21,0.69]
[1758697430617,1.49292865,211.25,211.23,13.59559401]
[1758697430810,2.21292865,211.25,211.22,37.12]
[1758697431026,4.73417601,211.23,211.22,37.12]
[1758697431499,6.22710466,211.23,211.22,37.12]
[1758697432010,6.94710466,211.23,211.22,37.12]
[1758697432706,6.22710466,211.23,211.22,37.12]
[1758697433015,1.49292865,211.23,211.22,37.12]
[1758697433410,6.22710466,211.23,211.22,37.12]
[1758697435828,6.22710466,211.23,211.15,13.59559401]
[1758697435829,18.7825447,211.23,211.15,13.59559401]
[1758697436001,1.49292865,211.18,211.16,63.12]
[1758697436201,2.21292865,211.18,211.16,37.12]
[1758697436391,2.21292865,211.18,211.12,50.55559401]
[1758697436392,0.72,211.17,211.15,37.12]
[1758697436705,2.21292865,211.16,211.15,37.12]
[1758697437417,2.21292865,211.16,211.11,37.12]